bitfinex-derivatives/quotes_BTCF0:USTF0_20250810
["timestamp","ask_amount","ask_price","bid_price","bid_amount"]
[1754791680123,0.08393,116720.0,116710.0,0.3524619]
[1754791680426,0.11579,116720.0,116710.0,2.11089554]
[1754791681531,0.11779,116720.0,116710.0,2.11089554]
[1754791681720,0.11879,116720.0,116710.0,2.11089554]
[1754791682630,0.11679,116720.0,116710.0,2.11089554]
[1754791683022,0.11679,116720.0,116710.0,2.11289554]
[1754791684331,0.11679,116720.0,116710.0,2.12156271]
[1754791684531,0.11579,116720.0,116710.0,2.12156271]
[1754791686032,0.11579,116720.0,116710.0,2.11289554]
[1754791689337,0.11579,116720.0,116710.0,1.85122852]
[1754791690335,0.11579,116720.0,116710.0,2.11281554]
[1754791690928,0.11579,116720.0,116710.0,1.85114852]
[1754791691838,0.11579,116720.0,116710.0,1.06258852]
[1754791692028,0.11579,116720.0,116710.0,1.85114852]
[1754791692229,0.13512299,116720.0,116710.0,1.85114852]
[1754791692430,0.13512299,116720.0,116710.0,2.11281554]
[1754791693735,0.13612299,116720.0,116710.0,2.11081554]
[1754791694238,0.13712299,116720.0,116710.0,2.11081554]
[1754791695238,0.06857299,116720.0,116710.0,2.11081554]
[1754791695941,0.06857299,116720.0,116710.0,1.5874415]
[1754791696334,0.06857299,116720.0,116710.0,2.11077554]
[1754791697047,0.05399299,116720.0,116710.0,2.11077554]
[1754791698149,0.05399299,116720.0,116710.0,1.74997554]
[1754791698353,0.05399299,116720.0,116710.0,2.11077554]
[1754791698852,0.03048299,116720.0,116710.0,2.11077554]
[1754791699153,0.05399299,116720.0,116710.0,2.11077554]
[1754791700754,0.05399299,116720.0,116710.0,1.74993554]
[1754791701256,0.05399299,116720.0,116710.0,2.11073554]
[1754791701955,0.05399299,116720.0,116710.0,1.74993554]
[1754791703557,0.05399848,116720.0,116710.0,1.74993554]
[1754791704352,0.05399848,116720.0,116710.0,2.11073554]
[1754791706051,0.05399848,116720.0,116710.0,1.74993554]
[1754791707060,0.05399848,116720.0,116710.0,2.11073554]
[1754791707856,0.05399848,116720.0,116710.0,1.74993554]
[1754791711160,0.05399848,116720.0,116710.0,1.2266015]
[1754791711358,0.05399848,116720.0,116710.0,1.74993554]
[1754791711359,0.02133848,116720.0,116710.0,1.74993554]
[1754791712952,0.02133848,116720.0,116710.0,2.11073554]
[1754791715963,0.02133848,116720.0,116710.0,1.74993554]
[1754791716559,0.02133848,116720.0,116710.0,2.11073554]
[1754791717762,0.0003,116730.0,116720.0,0.1791676]
[1754791717962,0.11896,116730.0,116720.0,2.02301194]
[1754791718967,0.11996,116730.0,116720.0,2.02301194]
[1754791719557,0.12096,116730.0,116720.0,2.02301194]
[1754791720167,0.11996,116730.0,116720.0,2.02301194]
[1754791720470,0.12096,116730.0,116720.0,2.02301194]
[1754791720766,0.08747,116730.0,116720.0,2.02301194]
[1754791721070,0.06631,116730.0,116720.0,2.02301194]
[1754791723571,0.1519602,116730.0,116720.0,2.02301194]
[1754791724069,0.06631,116730.0,116720.0,2.02301194]
[1754791724870,0.03585,116730.0,116720.0,2.02301194]
[1754791726769,0.0266,116730.0,116720.0,2.02301194]
[1754791730471,0.002,116730.0,116720.0,2.02301194]
[1754791731065,0.002,116730.0,116720.0,1.4996779]
[1754791731266,0.002,116730.0,116720.0,2.02301194]
[1754791731562,0.002,116730.0,116720.0,1.4996779]
[1754791731768,0.04566787,116730.0,116720.0,2.02301194]
[1754791733467,0.04566792,116730.0,116720.0,2.02301194]
[1754791733670,0.002,116730.0,116720.0,2.28467896]
[1754791733860,0.002,116730.0,116720.0,1.4996779]
[1754791734065,0.002,116730.0,116720.0,2.02301194]
[1754791734764,0.002,116730.0,116720.0,1.23461194]
[1754791734966,0.002,116730.0,116720.0,2.02337194]
[1754791735471,0.002,116730.0,116720.0,1.5000379]
[1754791735775,0.002,116730.0,116720.0,2.02337194]
[1754791737376,0.002,116730.0,116720.0,1.5000379]
[1754791737674,0.002,116730.0,116720.0,2.02337194]
[1754791740078,0.002,116730.0,116720.0,1.66257194]
[1754791740269,0.002,116730.0,116720.0,2.02337194]
[1754791740971,0.002,116730.0,116720.0,1.5000379]
[1754791741171,0.002,116730.0,116720.0,2.02337194]
[1754791747386,0.02125807,116730.0,116720.0,2.02337194]
[1754791750186,0.02125807,116730.0,116720.0,1.5000379]
[1754791750487,0.02125807,116730.0,116720.0,2.02337194]
[1754791750678,0.04380807,116730.0,116720.0,2.02337194]
[1754791751284,0.02125807,116730.0,116720.0,2.02337194]
[1754791751992,0.04380807,116730.0,116720.0,2.02337194]
[1754791752790,0.04380807,116730.0,116720.0,2.28503896]
[1754791753286,0.02125807,116730.0,116720.0,2.02337194]
[1754791755687,0.02125807,116730.0,116720.0,2.28503896]
[1754791757790,0.002,116730.0,116720.0,2.28503896]
[1754791758181,0.02094848,116730.0,116720.0,2.28503896]
[1754791758486,0.002,116730.0,116720.0,2.28503896]
[1754791758683,0.00942,116750.0,116740.0,0.2569164]
[1754791758888,0.11496,116750.0,116740.0,1.71001164]
[1754791759192,0.37662702,116750.0,116740.0,1.71001164]
[1754791759689,0.37662702,116750.0,116740.0,1.73395164]
[1754791759891,0.37862702,116750.0,116740.0,1.73395164]
[1754791760190,0.11696,116750.0,116740.0,0.94315164]
[1754791760391,0.11896,116750.0,116740.0,1.73395164]
[1754791760592,0.11896,116750.0,116740.0,1.2106176]
[1754791760887,0.11896,116750.0,116740.0,1.73395164]
[1754791762304,0.11896,116750.0,116740.0,1.2106176]
[1754791762596,0.12735939,116750.0,116740.0,1.73395164]
[1754791764700,0.11896,116750.0,116740.0,1.73395164]
[1754791770691,0.13791598,116750.0,116740.0,1.73395164]
[1754791771098,0.13791598,116750.0,116740.0,1.2106176]
[1754791771303,0.13791598,116750.0,116740.0,1.73395164]
[1754791773000,0.13791598,116750.0,116740.0,1.2106176]
[1754791773204,0.13791598,116750.0,116740.0,1.73395164]
[1754791775803,0.13791598,116750.0,116740.0,0.94315164]
[1754791776004,0.13791598,116750.0,116740.0,1.73335164]
[1754791776902,0.13791598,116750.0,116740.0,1.2100176]
[1754791777294,0.13791598,116750.0,116740.0,1.73335164]
[1754791782207,0.13791598,116750.0,116740.0,1.2100176]
[1754791782402,0.22355168,116750.0,116740.0,1.73335164]
[1754791782708,0.13791598,116750.0,116740.0,1.73335164]
[1754791784402,0.10576598,116750.0,116740.0,1.73335164]
[1754791784603,0.19140168,116750.0,116740.0,1.73335164]
[1754791786609,0.22467168,116750.0,116740.0,1.73335164]
[1754791793618,0.22467168,116750.0,116740.0,1.2100176]
[1754791793812,0.22467168,116750.0,116740.0,1.73335164]
[1754791795616,0.19140168,116750.0,116740.0,1.73335164]
[1754791797323,0.19140168,116750.0,116740.0,1.2100176]
[1754791797617,0.19140168,116750.0,116740.0,1.73335164]
[1754791798328,0.19140168,116750.0,116740.0,0.94315164]
[1754791798626,0.22604168,116750.0,116740.0,1.73197164]
[1754791798920,0.22604168,116750.0,116740.0,1.2086376]
[1754791799125,0.22604168,116750.0,116740.0,1.73197164]
[1754791799326,0.58684168,116750.0,116740.0,1.73197164]
[1754791801926,0.58684168,116750.0,116740.0,1.2086376]
[1754791802127,0.58684168,116750.0,116740.0,1.73197164]
[1754791805429,0.46939168,116750.0,116740.0,1.2086376]
[1754791805633,0.8503187,116750.0,116740.0,1.73197164]
[1754791806436,0.8503187,116750.0,116740.0,1.2086376]
[1754791806627,0.8503187,116750.0,116740.0,1.73197164]
[1754791807735,0.8503187,116750.0,116740.0,1.47030462]
[1754791808033,0.8503187,116750.0,116740.0,1.47058462]
[1754791809128,0.8503187,116750.0,116740.0,1.64661044]
[1754791810140,0.8503187,116750.0,116740.0,1.0376352]
[1754791810440,0.58865168,116750.0,116740.0,1.56096924]
[1754791813832,0.58865168,116750.0,116740.0,1.0376352]
[1754791814034,0.58865168,116750.0,116740.0,1.47533084]
[1754791814741,0.58865168,116750.0,116740.0,0.9519968]
[1754791814930,0.58865168,116750.0,116740.0,1.47533084]
[1754791815835,0.58865168,116750.0,116740.0,0.68589084]
[1754791816031,0.58865168,116750.0,116740.0,1.47597084]
[1754791816436,0.22785168,116750.0,116740.0,1.47597084]
[1754791816633,0.58865168,116750.0,116740.0,1.47597084]
[1754791817540,0.58865168,116750.0,116740.0,0.68589084]
[1754791817742,0.58865168,116750.0,116740.0,1.47613724]
[1754791818143,0.22785168,116750.0,116740.0,1.47613724]
[1754791818440,0.58865168,116750.0,116740.0,1.47613724]
[1754791819841,0.22785168,116750.0,116740.0,1.47613724]
[1754791820033,0.58865168,116750.0,116740.0,1.47609724]
[1754791820234,0.22785168,116750.0,116740.0,1.47609724]
[1754791820434,0.58865168,116750.0,116740.0,1.47609724]
[1754791820636,0.58865168,116750.0,116740.0,0.9527632]
[1754791821141,0.58865168,116750.0,116740.0,1.47609724]
[1754791822945,0.58865168,116750.0,116740.0,0.9527632]
[1754791823244,0.58865168,116750.0,116740.0,1.47609724]
[1754791823746,0.58865168,116750.0,116740.0,0.9527632]
[1754791824042,0.58865168,116750.0,116740.0,1.47609724]
[1754791825243,0.58865168,116750.0,116740.0,0.1625632]
[1754791825436,0.8503187,116750.0,116740.0,0.1395632]
[1754791825637,0.58865168,116750.0,116740.0,1.10610702]
[1754791825836,0.8503187,116750.0,116740.0,1.19175022]
[1754791826142,0.8503187,116750.0,116740.0,0.84472]
[1754791826339,0.8503187,116750.0,116740.0,0.31558702]
[1754791826546,0.2049032,116740.0,116730.0,0.50937782]
[1754791826741,0.2049032,116740.0,116730.0,0.50927782]
[1754791826742,0.8463262,116740.0,116730.0,0.50927782]
[1754791826941,0.8463262,116740.0,116730.0,1.30047782]
[1754791827846,0.8463262,116740.0,116730.0,0.50927782]
[1754791828045,0.8463262,116740.0,116730.0,1.30047782]
[1754791829449,0.8463262,116740.0,116730.0,0.50927782]
[1754791829746,0.8463262,116740.0,116730.0,1.30047782]
[1754791829947,0.8473262,116740.0,116730.0,1.0388108]
[1754791830148,0.8473262,116740.0,116730.0,1.30047782]
[1754791830646,0.8483262,116740.0,116730.0,1.30047782]
[1754791831149,0.8483262,116740.0,116730.0,1.0388108]
[1754791831347,0.8483262,116740.0,116730.0,1.30047782]
[1754791831543,0.8483262,116740.0,116730.0,1.30043782]
[1754791831746,0.2049102,116730.0,116720.0,0.1386976]
[1754791832048,0.8463332,116730.0,116720.0,1.21491462]
[1754791832449,0.8463332,116730.0,116720.0,1.47658164]
[1754791832648,0.8463332,116730.0,116720.0,1.21491462]
[1754791833350,0.58466618,116730.0,116720.0,0.9532476]
[1754791833650,0.58466618,116730.0,116720.0,1.21491462]
[1754791834452,0.58466618,116730.0,116720.0,0.9532476]
[1754791834647,0.58466618,116730.0,116720.0,1.21491462]
[1754791837454,0.5657102,116730.0,116720.0,1.47658164]
[1754791838846,0.2049102,116730.0,116720.0,1.47658164]
[1754791839758,0.0856502,116730.0,116720.0,1.47658164]
[1754791840257,0.1101602,116730.0,116720.0,1.47658164]
[1754791840655,0.0856502,116730.0,116720.0,1.47658164]
[1754791840857,0.2033402,116730.0,116720.0,1.47658164]
[1754791841059,0.2033402,116730.0,116720.0,1.47770164]
[1754791841450,0.2033402,116730.0,116720.0,0.9543676]
[1754791841657,0.2033402,116730.0,116720.0,1.47770164]
[1754791842261,0.2033402,116730.0,116720.0,0.9543676]
[1754791842461,0.2033402,116730.0,116720.0,1.47770164]
[1754791843961,0.2033402,116730.0,116720.0,0.9543676]
[1754791844152,0.2033402,116730.0,116720.0,1.47770164]
[1754791845366,0.2033402,116730.0,116720.0,0.9543676]
[1754791845662,0.2033402,116730.0,116720.0,1.47770164]
[1754791848466,0.0856502,116730.0,116720.0,1.47770164]
[1754791848968,0.7834908,116740.0,116730.0,0.1228302]
[1754791849264,0.84039509,116740.0,116730.0,0.42412722]
[1754791850268,0.84139509,116740.0,116730.0,0.42412722]
[1754791850562,1.10406211,116740.0,116730.0,0.42412722]
[1754791851263,1.10406211,116740.0,116730.0,0.1624602]
[1754791851465,1.10406211,116740.0,116730.0,0.42412722]
[1754791853267,1.10406211,116740.0,116730.0,0.40075722]
[1754791854380,0.84239509,116740.0,116730.0,0.40075722]
[1754791854678,1.10406211,116740.0,116730.0,0.40075722]
[1754791858687,0.84239509,116740.0,116730.0,0.40075722]
[1754791858986,0.84239509,116740.0,116730.0,0.1390902]
[1754791859185,0.84239509,116740.0,116730.0,0.40075722]
[1754791861186,0.84239509,116740.0,116730.0,0.1390902]
[1754791861391,0.84239509,116740.0,116730.0,0.40075722]
[1754791863091,0.84239509,116740.0,116730.0,0.1390902]
[1754791863387,0.84239509,116740.0,116730.0,0.40075722]
[1754791864182,0.84239509,116740.0,116730.0,1.19327722]
[1754791864383,0.84239509,116740.0,116730.0,0.40075722]
[1754791864588,0.84239509,116740.0,116730.0,1.19327722]
[1754791865190,0.84239509,116740.0,116730.0,0.9316102]
[1754791865390,0.84239509,116740.0,116730.0,1.19327722]
[1754791865583,0.84239509,116740.0,116730.0,0.9316102]
[1754791865784,0.84239509,116740.0,116730.0,1.19327722]
[1754791866595,0.84239509,116740.0,116730.0,0.1390902]
[1754791866797,0.84239509,116740.0,116730.0,1.19331722]
[1754791867092,1.10406211,116740.0,116730.0,1.19331722]
[1754791867390,0.84239509,116740.0,116730.0,1.19331722]
[1754791867592,1.10406211,116740.0,116730.0,1.19331722]
[1754791868192,0.84239509,116740.0,116730.0,0.9316502]
[1754791868393,1.10406211,116740.0,116730.0,1.19331722]
[1754791868585,0.84239509,116740.0,116730.0,1.19331722]
[1754791870187,0.48159509,116740.0,116730.0,1.19331722]
[1754791870393,0.84239509,116740.0,116730.0,1.19331722]
[1754791870892,1.10406211,116740.0,116730.0,1.19331722]
[1754791871393,0.84239509,116740.0,116730.0,0.9543502]
[1754791871593,0.84239509,116740.0,116730.0,1.21601722]
[1754791871893,0.84222194,116740.0,116730.0,1.21601722]
[1754791872588,0.84222194,116740.0,116730.0,0.9543502]
[1754791872794,0.84222194,116740.0,116730.0,1.21601722]
[1754791873190,0.84222194,116740.0,116730.0,0.9543502]
[1754791873597,0.84222194,116740.0,116730.0,1.21601722]
[1754791876897,1.10388896,116740.0,116730.0,0.9543502]
[1754791877095,0.84222194,116740.0,116730.0,0.9543502]
[1754791877299,1.10388896,116740.0,116730.0,1.21601722]
[1754791877496,0.84222194,116740.0,116730.0,1.21601722]
[1754791878903,0.84222194,116740.0,116730.0,0.9543502]
[1754791879403,0.84222194,116740.0,116730.0,1.21601722]
[1754791880595,0.84222194,116740.0,116730.0,0.9543502]
[1754791880796,0.84222194,116740.0,116730.0,1.21601722]
[1754791889902,0.84222194,116740.0,116730.0,0.9543502]
[1754791890097,1.10388896,116740.0,116730.0,1.21601722]
[1754791892210,0.84222194,116740.0,116730.0,1.21601722]
[1754791893310,0.48142194,116740.0,116730.0,1.21601722]
[1754791893510,0.84222194,116740.0,116730.0,1.21601722]
[1754791894412,0.84222194,116740.0,116730.0,0.9543502]
[1754791894611,0.84222194,116740.0,116730.0,1.21601722]
[1754791899616,0.84222194,116740.0,116730.0,0.42345722]
[1754791899815,0.84222194,116740.0,116730.0,1.21701722]
[1754791902316,0.84222194,116740.0,116730.0,0.9553502]
[1754791902511,0.84222194,116740.0,116730.0,1.21701722]
[1754791918829,0.84222194,116740.0,116730.0,0.9553502]
[1754791919028,0.84222194,116740.0,116730.0,1.21701722]
[1754791923634,0.84222194,116740.0,116730.0,0.9553502]
[1754791923841,0.84222194,116740.0,116730.0,1.21701722]
[1754791926337,0.48142194,116740.0,116730.0,1.21701722]
[1754791926531,0.84222194,116740.0,116730.0,1.21701722]
[1754791931043,0.48142194,116740.0,116730.0,1.21701722]
[1754791931239,0.84222194,116740.0,116730.0,1.21701722]
[1754791938648,0.84222194,116740.0,116730.0,0.9553502]
[1754791938844,0.84222194,116740.0,116730.0,1.21701722]
[1754791947552,0.84222194,116740.0,116730.0,0.9553502]
[1754791947750,0.84222194,116740.0,116730.0,1.21701722]
[1754791948653,0.84222194,116740.0,116730.0,0.9553502]
[1754791948953,0.84222194,116740.0,116730.0,1.21701722]
[1754791951054,0.48142194,116740.0,116730.0,1.21701722]
[1754791951256,0.84222194,116740.0,116730.0,1.21701722]
[1754791951655,0.48142194,116740.0,116730.0,1.21701722]
[1754791951953,0.84222194,116740.0,116730.0,1.21701722]
[1754791952756,0.84222194,116740.0,116730.0,0.9553502]
[1754791952954,0.84222194,116740.0,116730.0,1.21701722]
[1754791956359,0.84222194,116740.0,116730.0,0.9553502]
[1754791956557,0.84222194,116740.0,116730.0,1.21701722]
[1754791957661,0.48142194,116740.0,116730.0,1.21701722]
[1754791957860,0.84222194,116740.0,116730.0,1.21701722]
[1754791958261,0.84222194,116740.0,116730.0,0.9553502]
[1754791958461,0.84222194,116740.0,116730.0,1.21701722]
[1754791958862,0.84222194,116740.0,116730.0,0.9553502]
[1754791959065,0.84222194,116740.0,116730.0,1.21701722]
[1754791959664,0.48142194,116740.0,116730.0,1.21701722]
[1754791959961,0.84222194,116740.0,116730.0,1.21701722]
[1754791960667,0.84222194,116740.0,116730.0,0.42345722]
[1754791960853,0.84222194,116740.0,116730.0,1.19047722]
[1754791961164,0.84222194,116740.0,116730.0,0.40075722]
[1754791961366,0.84222194,116740.0,116730.0,1.19047722]
[1754791961867,0.84222194,116740.0,116730.0,0.40075722]
[1754791962055,1.10388896,116740.0,116730.0,0.36262722]
[1754791962261,1.10388896,116740.0,116730.0,1.16860722]
[1754791962463,0.84222194,116740.0,116730.0,1.16860722]
[1754791962663,0.84222194,116740.0,116730.0,0.9301602]
[1754791962866,1.10388896,116740.0,116730.0,1.19182722]
[1754791963665,1.10388896,116740.0,116730.0,1.21519722]
[1754791965260,0.84222194,116740.0,116730.0,1.21519722]
[1754791965657,0.84222194,116740.0,116730.0,0.42547722]
[1754791965857,0.84222194,116740.0,116730.0,1.21515722]
[1754791966768,1.10388896,116740.0,116730.0,1.21515722]
[1754791968363,1.10388896,116740.0,116730.0,0.1638102]
[1754791968570,1.10388896,116740.0,116730.0,1.21511722]
[1754791969270,0.74308896,116740.0,116730.0,0.42547722]
[1754791969474,1.10388896,116740.0,116730.0,1.21511722]
[1754791970074,0.84222194,116740.0,116730.0,1.21511722]
[1754791970483,1.10388896,116740.0,116730.0,0.78964]
[1754791970676,0.2030702,116730.0,116720.0,0.0001]
[1754791970880,0.2030775,116720.0,116710.0,0.0001]
[1754791971083,0.2030849,116710.0,116700.0,0.20889081]
[1754791971278,0.84469306,116710.0,116700.0,0.93647861]
[1754791971474,0.84469306,116710.0,116700.0,0.12311861]
[1754791971680,0.59142694,116710.0,116700.0,0.12311861]
[1754791971973,0.85309396,116710.0,116700.0,0.12311861]
[1754791972182,0.59142694,116710.0,116700.0,0.12311861]
[1754791972383,0.85309396,116710.0,116700.0,0.12311861]
[1754791972581,0.85309396,116710.0,116700.0,0.38478563]
[1754791972786,0.85309396,116710.0,116700.0,0.12311861]
[1754791973181,0.85309396,116710.0,116700.0,0.05493]
[1754791973380,0.59142694,116710.0,116700.0,0.05793]
[1754791973584,0.85309396,116710.0,116700.0,0.05793]
[1754791974086,0.59142694,116710.0,116700.0,0.05793]
[1754791974587,0.59142694,116710.0,116700.0,0.05693]
[1754791974775,0.85309396,116710.0,116700.0,0.05693]
[1754791974981,0.59142694,116710.0,116700.0,0.58026404]
[1754791975289,0.59142694,116710.0,116700.0,0.05693]
[1754791975682,0.59142694,116710.0,116700.0,0.58026404]
[1754791976285,0.2030921,116700.0,116690.0,0.05483]
[1754791976583,0.5638921,116700.0,116690.0,0.05473]
[1754791976784,0.58134104,116700.0,116690.0,0.05473]
[1754791977188,0.58134104,116700.0,116690.0,0.31639702]
[1754791977590,0.58134104,116700.0,116690.0,0.33976702]
[1754791977791,0.5638921,116700.0,116690.0,0.33976702]
[1754791977990,0.5638921,116700.0,116690.0,0.0781]
[1754791978492,0.5638921,116700.0,116690.0,0.33976702]
[1754791978691,0.5648921,116700.0,116690.0,0.33976702]
[1754791979090,0.82655912,116700.0,116690.0,0.33976702]
[1754791979291,0.5648921,116700.0,116690.0,0.33976702]
[1754791979490,0.82655912,116700.0,116690.0,0.33976702]
[1754791979694,0.82655912,116700.0,116690.0,0.0781]
[1754791979894,0.82655912,116700.0,116690.0,0.31639702]
[1754791980091,0.1069088,116690.0,116680.0,1.18497702]
[1754791980300,0.5638988,116690.0,116680.0,1.18487702]
[1754791980495,0.5638988,116690.0,116680.0,1.44654404]
[1754791980695,0.5638988,116690.0,116680.0,0.92321]
[1754791980896,0.82556582,116690.0,116680.0,1.44654404]
[1754791981098,0.5638988,116690.0,116680.0,1.44654404]
[1754791981396,0.5638988,116690.0,116680.0,1.46991404]
[1754791981592,0.5648988,116690.0,116680.0,1.46991404]
[1754791981792,0.5648988,116690.0,116680.0,0.94658]
[1754791982293,0.5648988,116690.0,116680.0,1.46991404]
[1754791982487,0.5648988,116690.0,116680.0,0.0781]
[1754791982683,0.5648988,116690.0,116680.0,0.95066]
[1754791983290,0.5648988,116690.0,116680.0,1.47399404]
[1754791983699,0.5648988,116690.0,116680.0,0.95066]
[1754791983991,0.5648988,116690.0,116680.0,1.47399404]
[1754791984198,0.5648988,116690.0,116680.0,0.95066]
[1754791984596,0.5648988,116690.0,116680.0,0.60143404]
[1754791984798,0.5648988,116690.0,116680.0,1.47659404]
[1754791985298,0.5648988,116690.0,116680.0,0.60143404]
[1754791985500,0.5648988,116690.0,116680.0,1.47659404]
[1754791985998,0.5648988,116690.0,116680.0,1.47667404]
[1754791986197,0.5648988,116690.0,116680.0,0.95334]
[1754791986389,0.5648988,116690.0,116680.0,1.47667404]
[1754791987998,0.5648988,116690.0,116680.0,0.95334]
[1754791988200,0.5648988,116690.0,116680.0,1.47667404]
[1754791990298,0.5648988,116690.0,116680.0,0.95334]
[1754791990598,0.5648988,116690.0,116680.0,1.47667404]
[1754791991299,0.5648988,116690.0,116680.0,0.95252]
[1754791991300,0.5664188,116690.0,116680.0,0.95252]
[1754791991500,0.5664188,116690.0,116680.0,1.47585404]
[1754791992201,0.5664188,116690.0,116680.0,0.95252]
[1754791992403,0.5664188,116690.0,116680.0,1.47585404]
[1754791995200,0.2056188,116690.0,116680.0,1.47585404]
[1754791995399,0.2056188,116690.0,116680.0,1.56174044]
[1754791996305,0.2056188,116690.0,116680.0,1.47605404]
[1754791996492,0.2056188,116690.0,116680.0,1.56174044]
[1754791996894,0.2056188,116690.0,116680.0,1.0384064]
[1754791997301,0.2056188,116690.0,116680.0,1.56174044]
[1754791997502,0.2056188,116690.0,116680.0,1.47605404]
[1754791998307,0.22307123,116690.0,116680.0,1.47605404]
[1754791999207,0.22307123,116690.0,116680.0,0.95272]
[1754791999409,0.22307123,116690.0,116680.0,1.47605404]
[1754791999608,0.22307123,116690.0,116680.0,1.56174084]
[1754792000602,0.10413123,116690.0,116680.0,1.56174084]
[1754792000808,0.10413123,116690.0,116680.0,1.82340786]
[1754792001110,0.10413123,116690.0,116680.0,2.18420786]
[1754792001111,0.01845243,116690.0,116680.0,2.18420786]
[1754792001610,0.01845243,116690.0,116680.0,1.92254084]
[1754792002514,0.01845243,116690.0,116680.0,1.3992068]
[1754792003003,0.01845243,116690.0,116680.0,1.92254084]
[1754792005709,0.001,116690.0,116680.0,2.18420786]
[1754792006615,0.001,116690.0,116680.0,1.92254084]
[1754792006815,0.0866795,116690.0,116680.0,1.92254084]
[1754792007016,0.001,116690.0,116680.0,1.92254084]
[1754792008416,0.001,116690.0,116680.0,1.98427702]
[1754792010007,0.001,116690.0,116680.0,2.24594404]
[1754792011217,0.001,116690.0,116680.0,1.92254084]
[1754792011513,0.001,116690.0,116680.0,2.24594404]
[1754792013511,0.001,116690.0,116680.0,1.46094298]
[1754792013713,0.001,116690.0,116680.0,2.51494404]
[1754792014913,0.001,116690.0,116680.0,1.72994298]
[1754792015215,0.001,116690.0,116680.0,2.51494404]
[1754792016621,0.001,116690.0,116680.0,1.72994298]
[1754792016817,0.001,116690.0,116680.0,2.51494404]
[1754792019134,0.1954371,116700.0,116680.0,2.64750294]
[1754792019423,0.2186071,116700.0,116690.0,0.7476365]
[1754792019622,0.2185071,116700.0,116690.0,0.68619354]
[1754792019819,0.2518971,116700.0,116690.0,0.68619354]
[1754792020025,0.2518971,116700.0,116690.0,0.7478365]
[1754792020222,0.2046271,116700.0,116690.0,0.7478365]
[1754792020423,0.2056271,116700.0,116690.0,0.7478365]
[1754792020724,0.0866721,116700.0,116690.0,0.7478365]
[1754792021426,0.1106321,116700.0,116690.0,0.7478365]
[1754792022224,0.1096321,116700.0,116690.0,0.7478365]
[1754792022429,0.1106321,116700.0,116690.0,0.7478365]
[1754792022726,0.1106321,116700.0,116690.0,0.22450246]
[1754792023027,0.1106321,116700.0,116690.0,1.08966246]
[1754792023224,0.1106321,116700.0,116690.0,1.6129965]
[1754792024423,0.1106321,116700.0,116690.0,1.08966246]
[1754792024622,0.1106321,116700.0,116690.0,1.6129965]
[1754792024823,0.1106321,116700.0,116690.0,1.62139432]
[1754792025426,0.1106321,116700.0,116690.0,1.09806028]
[1754792025626,0.1106321,116700.0,116690.0,1.62139432]
[1754792030638,0.1106321,116700.0,116690.0,1.09806028]
[1754792030932,0.1106321,116700.0,116690.0,1.62139432]
[1754792032334,0.1106321,116700.0,116690.0,1.98219432]
[1754792035038,0.1106321,116700.0,116690.0,1.45886028]
[1754792035335,0.1106321,116700.0,116690.0,1.97519432]
[1754792035837,0.1106321,116700.0,116690.0,1.91355136]
[1754792036335,0.12877361,116700.0,116690.0,1.91355136]
[1754792040839,0.12877361,116700.0,116690.0,1.39021732]
[1754792041033,0.12877361,116700.0,116690.0,1.91355136]
[1754792042238,0.17165361,116700.0,116690.0,1.39021732]
[1754792042539,0.18553361,116700.0,116690.0,1.39021732]
[1754792042741,0.18553361,116700.0,116690.0,1.91355136]
[1754792045735,0.1673921,116700.0,116690.0,1.97519432]
[1754792049743,0.1673921,116700.0,116690.0,1.61439432]
[1754792049947,0.1673921,116700.0,116690.0,1.97519432]
[1754792052148,0.1673921,116700.0,116690.0,1.61439432]
[1754792052444,0.1340021,116700.0,116690.0,1.97519432]
[1754792052645,0.1340021,116700.0,116690.0,1.45186028]
[1754792052845,0.1340021,116700.0,116690.0,1.97519432]
[1754792053044,0.04833,116700.0,116690.0,1.97519432]
[1754792053242,0.03445,116700.0,116690.0,1.97519432]
[1754792054647,0.03445,116700.0,116690.0,1.45186028]
[1754792054845,0.03445,116700.0,116690.0,1.97519432]
[1754792055648,0.03445,116700.0,116690.0,1.45186028]
[1754792055841,0.03445,116700.0,116690.0,1.97519432]
[1754792057752,0.1191221,116700.0,116690.0,1.97519432]
[1754792057952,0.1191221,116700.0,116690.0,1.97619432]
[1754792059653,0.1191221,116700.0,116690.0,1.91455136]
[1754792060153,0.1191221,116700.0,116690.0,1.39121732]
[1754792060454,0.1191221,116700.0,116690.0,1.91455136]
[1754792061852,0.13814123,116700.0,116690.0,1.91455136]
[1754792062354,0.13814123,116700.0,116690.0,1.39121732]
[1754792062559,0.15250123,116700.0,116690.0,1.91455136]
[1754792067559,0.13814123,116700.0,116690.0,1.91455136]
[1754792068760,0.1191221,116700.0,116690.0,1.91455136]
[1754792068961,0.03345,116700.0,116690.0,1.91455136]
[1754792070054,0.02396,116700.0,116690.0,1.91455136]
[1754792072456,0.1096324,116700.0,116690.0,1.91455136]
[1754792073950,0.02396,116700.0,116690.0,1.91455136]
[1754792079061,0.02396,116700.0,116690.0,1.39121732]
[1754792079260,0.02396,116700.0,116690.0,1.05639136]
[1754792079466,0.04298059,116700.0,116690.0,1.89535136]
[1754792080358,0.04298059,116700.0,116690.0,1.37201732]
[1754792080668,0.04298059,116700.0,116690.0,1.89535136]
[1754792081168,0.04298059,116700.0,116690.0,1.88695354]
[1754792082672,0.04298059,116700.0,116690.0,1.3636195]
[1754792082873,0.04298059,116700.0,116690.0,1.89558188]
[1754792084474,0.02396,116700.0,116690.0,1.89558188]
[1754792085774,0.04298216,116700.0,116690.0,1.89558188]
[1754792090473,0.04298216,116700.0,116690.0,1.37224784]
[1754792090674,0.04298216,116700.0,116690.0,1.89558188]
[1754792093678,0.01902216,116700.0,116690.0,1.89558188]
[1754792094985,0.01902216,116700.0,116690.0,2.1506489]
[1754792095282,0.0003,116710.0,116700.0,0.055]
[1754792095481,0.0003,116720.0,116710.0,0.03882]
[1754792095681,0.71065039,116730.0,116710.0,1.77480974]
[1754792095885,0.75756039,116730.0,116720.0,0.68561184]
[1754792096186,0.75746039,116730.0,116720.0,0.68561184]
[1754792096986,0.7662133,116730.0,116720.0,0.68561184]
[1754792097386,0.75746039,116730.0,116720.0,0.69429173]
[1754792097886,0.67180319,116730.0,116720.0,0.69429173]
[1754792098082,0.58614689,116730.0,116720.0,0.69429173]
[1754792098593,0.58814689,116730.0,116720.0,0.68561184]
[1754792098886,0.58814689,116730.0,116720.0,0.1622778]
[1754792099089,0.22734689,116730.0,116720.0,0.1622778]
[1754792099290,0.22734689,116730.0,116720.0,0.68561184]
[1754792100093,0.03655,116730.0,116720.0,0.94727886]
[1754792100488,0.03655,116730.0,116720.0,0.69419121]
[1754792101092,0.05139,116730.0,116720.0,0.69419121]
[1754792101388,0.02683,116730.0,116720.0,0.69419121]
[1754792101595,0.002,116730.0,116720.0,1.31665823]
[1754792102190,0.02683,116730.0,116720.0,1.31665823]
[1754792102700,0.02683,116730.0,116720.0,1.05499121]
[1754792103094,0.02483,116730.0,116720.0,1.05499121]
[1754792108505,0.02483,116730.0,116720.0,0.53165717]